[Event "Early-Titled-Tuesday-Blitz-April-16-2024"]
[Site "Chess.com"]
[Date "2024.04.16"]
[Round "3"]
[White "DonkyDonkyDonkey"]
[Black "Revan_2002"]
[Result "0-1"]
[WhiteElo "2951"]
[BlackElo "2715"]
[TimeControl "180+1"]
[EndTime "8:28:37 PDT"]
[Termination "Revan_2002 won by resignation"]

1. e4 {[%clk 0:03:00.9]} 1... e5 {[%clk 0:02:58.9]} 2. Nf3 {[%clk 0:02:58.9]}
2... Nc6 {[%clk 0:02:57.5]} 3. Nc3 {[%clk 0:02:59.1]} 3... Nf6 {[%clk
0:02:56.3]} 4. h3 {[%clk 0:02:58.6]} 4... a6 {[%clk 0:02:23.5]} 5. d4 {[%clk
0:02:53.4]} 5... exd4 {[%clk 0:02:24.4]} 6. Nxd4 {[%clk 0:02:54]} 6... Bc5
{[%clk 0:02:25]} 7. Be3 {[%clk 0:02:52.3]} 7... Bxd4 {[%clk 0:02:22.2]} 8. Bxd4
{[%clk 0:02:52.4]} 8... O-O {[%clk 0:02:21.6]} 9. Be3 {[%clk 0:02:42.5]} 9...
Re8 {[%clk 0:02:14.2]} 10. Bd3 {[%clk 0:02:42.6]} 10... d6 {[%clk 0:02:07.6]}
11. O-O {[%clk 0:02:42.3]} 11... h6 {[%clk 0:02:02.6]} 12. f4 {[%clk 0:02:34.7]}
12... b5 {[%clk 0:02:02.1]} 13. Qf3 {[%clk 0:02:21.5]} 13... Bb7 {[%clk
0:01:57.1]} 14. a3 {[%clk 0:02:21.3]} 14... b4 {[%clk 0:01:41.9]} 15. axb4
{[%clk 0:02:13.4]} 15... Nxb4 {[%clk 0:01:42.8]} 16. Rae1 {[%clk 0:02:03]} 16...
c5 {[%clk 0:01:15.4]} 17. f5 {[%clk 0:01:51.1]} 17... Kh8 {[%clk 0:00:59.9]} 18.
Bf4 {[%clk 0:01:46]} 18... Qb6 {[%clk 0:00:49.2]} 19. Kh1 {[%clk 0:01:42.2]}
19... Rac8 {[%clk 0:00:37.3]} 20. b3 {[%clk 0:01:29.8]} 20... Nxd3 {[%clk
0:00:32.5]} 21. Qxd3 {[%clk 0:01:30.7]} 21... Qc6 {[%clk 0:00:29.2]} 22. Qxd6
{[%clk 0:01:19.3]} 22... Nxe4 {[%clk 0:00:22.4]} 23. Qxc6 {[%clk 0:01:13.5]}
23... Bxc6 {[%clk 0:00:23.3]} 24. Nxe4 {[%clk 0:00:52.4]} 24... Bxe4 {[%clk
0:00:24.2]} 25. f6 {[%clk 0:00:51.7]} 25... g5 {[%clk 0:00:22.7]} 26. Bd6 {[%clk
0:00:47.5]} 26... Bxc2 {[%clk 0:00:22.2]} 27. Rc1 {[%clk 0:00:47.8]} 27... Bxb3
{[%clk 0:00:20.9]} 28. Bxc5 {[%clk 0:00:48.3]} 28... Re2 {[%clk 0:00:18.4]} 29.
Kg1 {[%clk 0:00:36.2]} 29... Kh7 {[%clk 0:00:13.9]} 30. Bf2 {[%clk 0:00:34.2]}
30... Rxc1 {[%clk 0:00:12.9]} 31. Rxc1 {[%clk 0:00:35.1]} 31... Kg6 {[%clk
0:00:11.9]} 32. Rc6 {[%clk 0:00:33.6]} 32... a5 {[%clk 0:00:10.3]} 33. Ra6
{[%clk 0:00:34.3]} 33... a4 {[%clk 0:00:10.6]} 34. Bc5 {[%clk 0:00:35]} 34...
Bd5 {[%clk 0:00:06]} 35. g4 {[%clk 0:00:33.8]} 35... Rg2+ {[%clk 0:00:05.7]} 36.
Kf1 {[%clk 0:00:34.1]} 36... Rc2 {[%clk 0:00:06.3]} 37. Be7 {[%clk 0:00:33.7]}
37... Bc4+ {[%clk 0:00:06.5]} 0-1

[Event "Early-Titled-Tuesday-Blitz-April-16-2024"]
[Site "Chess.com"]
[Date "2024.04.16"]
[Round "3"]
[White "Titus369"]
[Black "DominguezOnYoutube"]
[Result "0-1"]
[WhiteElo "2655"]
[BlackElo "2943"]
[TimeControl "180+1"]
[EndTime "8:28:40 PDT"]
[Termination "DominguezOnYoutube won by resignation"]

1. e4 {[%clk 0:03:00.9]} 1... c5 {[%clk 0:02:59.4]} 2. Nf3 {[%clk 0:02:58.4]}
2... d6 {[%clk 0:02:58.9]} 3. d4 {[%clk 0:02:58.5]} 3... cxd4 {[%clk 0:02:58.8]}
4. Nxd4 {[%clk 0:02:59.2]} 4... Nf6 {[%clk 0:02:58.6]} 5. Nc3 {[%clk 0:02:59.8]}
5... a6 {[%clk 0:02:58.7]} 6. h3 {[%clk 0:03:00.1]} 6... e6 {[%clk 0:02:51]} 7.
g4 {[%clk 0:02:54.6]} 7... h6 {[%clk 0:02:49.7]} 8. Bg2 {[%clk 0:02:52.8]} 8...
Be7 {[%clk 0:02:44.7]} 9. O-O {[%clk 0:02:52.4]} 9... g5 {[%clk 0:02:29.2]} 10.
a4 {[%clk 0:02:25.9]} 10... Nbd7 {[%clk 0:02:21.8]} 11. a5 {[%clk 0:02:12.7]}
11... Ne5 {[%clk 0:02:21.1]} 12. b3 {[%clk 0:01:56.6]} 12... h5 {[%clk 0:02:16]}
13. Bxg5 {[%clk 0:01:54.2]} 13... hxg4 {[%clk 0:02:14.5]} 14. h4 {[%clk
0:01:53]} 14... Nh7 {[%clk 0:01:45.4]} 15. f4 {[%clk 0:01:43.8]} 15... gxf3
{[%clk 0:01:15]} 16. Nxf3 {[%clk 0:01:27.5]} 16... Nxg5 {[%clk 0:01:10.5]} 17.
Nxe5 {[%clk 0:01:15.3]} 17... dxe5 {[%clk 0:01:07.3]} 18. Qxd8+ {[%clk
0:01:14.8]} 18... Kxd8 {[%clk 0:01:02.7]} 19. Rfd1+ {[%clk 0:01:05.4]} 19... Bd7
{[%clk 0:01:00.4]} 20. hxg5 {[%clk 0:01:04.5]} 20... Bc5+ {[%clk 0:00:51.4]} 21.
Kf1 {[%clk 0:01:02.9]} 21... Bd4 {[%clk 0:00:52.3]} 22. Na4 {[%clk 0:00:38.3]}
22... Bxa1 {[%clk 0:00:35]} 23. Nb6 {[%clk 0:00:38.3]} 23... Bd4 {[%clk
0:00:33.2]} 24. Nxa8 {[%clk 0:00:38.7]} 24... Ke7 {[%clk 0:00:29.8]} 25. Nb6
{[%clk 0:00:31.5]} 25... Bb5+ {[%clk 0:00:28.8]} 26. c4 {[%clk 0:00:27.9]} 26...
Bc6 {[%clk 0:00:28.4]} 27. Rd3 {[%clk 0:00:18.7]} 27... Rh4 {[%clk 0:00:22]} 28.
Nc8+ {[%clk 0:00:12.9]} 28... Kf8 {[%clk 0:00:20.8]} 29. Nd6 {[%clk 0:00:10.3]}
29... Bc5 {[%clk 0:00:20.5]} 30. g6 {[%clk 0:00:04.2]} 30... Rf4+ {[%clk
0:00:19.4]} 31. Ke2 {[%clk 0:00:03.8]} 31... fxg6 {[%clk 0:00:18.5]} 32. Nc8
{[%clk 0:00:02.7]} 32... Rf2+ {[%clk 0:00:17.9]} 33. Ke1 {[%clk 0:00:02.2]}
33... Rxg2 {[%clk 0:00:18.8]} 34. Rf3+ {[%clk 0:00:01.5]} 34... Kg7 {[%clk
0:00:18.2]} 35. Nb6 {[%clk 0:00:01.7]} 35... Bxe4 {[%clk 0:00:17.7]} 0-1

[Event "Early-Titled-Tuesday-Blitz-April-16-2024"]
[Site "Chess.com"]
[Date "2024.04.16"]
[Round "3"]
[White "diamonds13"]
[Black "XDPS"]
[Result "0-1"]
[WhiteElo "2329"]
[BlackElo "2850"]
[TimeControl "180+1"]
[EndTime "8:28:42 PDT"]
[Termination "XDPS won by resignation"]

1. d4 {[%clk 0:03:00.9]} 1... d5 {[%clk 0:02:55.2]} 2. c4 {[%clk 0:03:01.1]}
2... c6 {[%clk 0:02:54.5]} 3. cxd5 {[%clk 0:03:00.9]} 3... cxd5 {[%clk
0:02:54.6]} 4. Bf4 {[%clk 0:03:00.4]} 4... Nc6 {[%clk 0:02:54.8]} 5. e3 {[%clk
0:03:00.6]} 5... Nf6 {[%clk 0:02:55.2]} 6. Nc3 {[%clk 0:03:00.7]} 6... e6 {[%clk
0:02:54.2]} 7. Bd3 {[%clk 0:03:00.3]} 7... Bd6 {[%clk 0:02:54.6]} 8. Bg3 {[%clk
0:02:59.5]} 8... O-O {[%clk 0:02:54.2]} 9. Nge2 {[%clk 0:02:58.7]} 9... e5
{[%clk 0:02:52.7]} 10. dxe5 {[%clk 0:02:55.5]} 10... Nxe5 {[%clk 0:02:53.6]} 11.
Nd4 {[%clk 0:02:48.8]} 11... Re8 {[%clk 0:02:53.3]} 12. Be2 {[%clk 0:02:45.6]}
12... a6 {[%clk 0:02:51.3]} 13. O-O {[%clk 0:02:44]} 13... b5 {[%clk 0:02:33.4]}
14. a3 {[%clk 0:02:43]} 14... Bb7 {[%clk 0:02:33.3]} 15. Bxe5 {[%clk 0:02:22.6]}
15... Bxe5 {[%clk 0:02:31.8]} 16. Bf3 {[%clk 0:02:22.5]} 16... Ne4 {[%clk
0:02:29.4]} 17. Bxe4 {[%clk 0:02:16]} 17... dxe4 {[%clk 0:02:29.4]} 18. Nce2
{[%clk 0:02:05.2]} 18... Qg5 {[%clk 0:02:24.9]} 19. g3 {[%clk 0:01:59.5]} 19...
Rad8 {[%clk 0:02:21.7]} 20. Qe1 {[%clk 0:01:49.8]} 20... h5 {[%clk 0:02:14]} 21.
h4 {[%clk 0:01:47.2]} 21... Qg4 {[%clk 0:02:14]} 22. Rd1 {[%clk 0:01:39.7]}
22... Bd5 {[%clk 0:02:11.5]} 23. Qa5 {[%clk 0:01:33.7]} 23... Bc4 {[%clk
0:02:06.1]} 24. Rd2 {[%clk 0:01:27.2]} 24... Bxd4 {[%clk 0:01:53.6]} 25. Nxd4
{[%clk 0:01:18.3]} 25... Bxf1 {[%clk 0:01:53.4]} 26. Kxf1 {[%clk 0:01:18.4]}
26... Rc8 {[%clk 0:01:51.2]} 27. Kg2 {[%clk 0:01:11.9]} 27... Qg6 {[%clk
0:01:43.1]} 28. a4 {[%clk 0:01:03.2]} 28... bxa4 {[%clk 0:01:42.1]} 29. Qxa4
{[%clk 0:01:03.2]} 29... Qf6 {[%clk 0:01:30.7]} 30. b4 {[%clk 0:00:58.4]} 30...
Red8 {[%clk 0:01:24.9]} 31. b5 {[%clk 0:00:58.2]} 31... axb5 {[%clk 0:01:23.8]}
32. Qxb5 {[%clk 0:00:58.3]} 32... g6 {[%clk 0:01:24]} 33. Qf1 {[%clk 0:00:56.1]}
33... Rd5 {[%clk 0:01:19]} 34. Qd1 {[%clk 0:00:55.3]} 34... Rdc5 {[%clk
0:01:17.2]} 35. Qb1 {[%clk 0:00:54]} 35... Qe5 {[%clk 0:01:10.7]} 36. Qb7 {[%clk
0:00:50.8]} 36... R5c7 {[%clk 0:01:08.6]} 37. Qb3 {[%clk 0:00:39.6]} 37... Rc1
{[%clk 0:01:03.3]} 38. Ra2 {[%clk 0:00:37.7]} 38... Rb8 {[%clk 0:00:56.8]} 39.
Qa4 {[%clk 0:00:35.6]} 39... Rbb1 {[%clk 0:00:55.1]} 40. Qa8+ {[%clk 0:00:34.4]}
40... Kg7 {[%clk 0:00:52.5]} 41. Ne2 {[%clk 0:00:33.5]} 41... Re1 {[%clk
0:00:47.6]} 42. Qc6 {[%clk 0:00:21.8]} 42... Qf5 {[%clk 0:00:39.4]} 43. Qc3+
{[%clk 0:00:21.4]} 43... Kh7 {[%clk 0:00:39.4]} 44. Ra8 {[%clk 0:00:08.6]} 44...
Qf3+ {[%clk 0:00:38.7]} 0-1

[Event "Early-Titled-Tuesday-Blitz-April-16-2024"]
[Site "Chess.com"]
[Date "2024.04.16"]
[Round "3"]
[White "lamomiajunior"]
[Black "amintabatabaei"]
[Result "0-1"]
[WhiteElo "2742"]
[BlackElo "3046"]
[TimeControl "180+1"]
[EndTime "8:28:43 PDT"]
[Termination "amintabatabaei won by resignation"]

1. d4 {[%clk 0:03:00.9]} 1... Nf6 {[%clk 0:02:59.2]} 2. c4 {[%clk 0:03:01.5]}
2... g6 {[%clk 0:02:59.6]} 3. Nc3 {[%clk 0:03:02.1]} 3... Bg7 {[%clk 0:03:00.2]}
4. e4 {[%clk 0:03:02.7]} 4... d6 {[%clk 0:03:00.7]} 5. h3 {[%clk 0:03:03.2]}
5... Nbd7 {[%clk 0:02:57]} 6. Be3 {[%clk 0:03:00.9]} 6... e5 {[%clk 0:02:56.8]}
7. d5 {[%clk 0:03:01.3]} 7... h5 {[%clk 0:02:57.4]} 8. Bd3 {[%clk 0:03:00.3]}
8... Bh6 {[%clk 0:02:53.3]} 9. Bxh6 {[%clk 0:02:58.5]} 9... Rxh6 {[%clk
0:02:54.2]} 10. Nf3 {[%clk 0:02:58.7]} 10... Kf8 {[%clk 0:02:51.6]} 11. Qd2
{[%clk 0:02:58.2]} 11... Kg7 {[%clk 0:02:50.8]} 12. a3 {[%clk 0:02:58.3]} 12...
a5 {[%clk 0:02:50.6]} 13. Bc2 {[%clk 0:02:57.6]} 13... Nc5 {[%clk 0:02:49.3]}
14. b3 {[%clk 0:02:50.2]} 14... h4 {[%clk 0:02:42.9]} 15. Rb1 {[%clk 0:02:50.2]}
15... Nh5 {[%clk 0:02:39.4]} 16. b4 {[%clk 0:02:50.7]} 16... Na6 {[%clk
0:02:37.4]} 17. Ne2 {[%clk 0:02:50.4]} 17... Qf6 {[%clk 0:02:28.5]} 18. Qe3
{[%clk 0:02:39.1]} 18... Bd7 {[%clk 0:02:24.4]} 19. g3 {[%clk 0:02:21.2]} 19...
hxg3 {[%clk 0:02:11.6]} 20. fxg3 {[%clk 0:02:22.1]} 20... Rhh8 {[%clk
0:02:11.3]} 21. Kd2 {[%clk 0:02:20.7]} 21... axb4 {[%clk 0:02:04.8]} 22. axb4
{[%clk 0:02:20.2]} 22... Qe7 {[%clk 0:02:02.3]} 23. g4 {[%clk 0:02:07.5]} 23...
Nf6 {[%clk 0:01:57.9]} 24. Ng3 {[%clk 0:02:06]} 24... c6 {[%clk 0:01:49.2]} 25.
Qg5 {[%clk 0:01:55.2]} 25... Ng8 {[%clk 0:01:41.1]} 26. Qe3 {[%clk 0:01:43.5]}
26... c5 {[%clk 0:01:39.7]} 27. bxc5 {[%clk 0:01:35.4]} 27... Nxc5 {[%clk
0:01:40.6]} 28. Rbg1 {[%clk 0:01:28.5]} 28... Ra2 {[%clk 0:01:38.9]} 29. Kc1
{[%clk 0:01:23.7]} 29... Qd8 {[%clk 0:01:36.8]} 30. Nxe5 {[%clk 0:01:17.3]}
30... Qa5 {[%clk 0:01:03.9]} 31. Nxd7 {[%clk 0:01:16.6]} 31... Nxd7 {[%clk
0:00:58.5]} 32. Rf1 {[%clk 0:01:00.8]} 32... Ne5 {[%clk 0:00:58.3]} 33. Ne2
{[%clk 0:00:53.8]} 33... Nf6 {[%clk 0:00:33.5]} 34. g5 {[%clk 0:00:49.5]} 34...
Nfd7 {[%clk 0:00:32.2]} 35. Qc3 {[%clk 0:00:28.5]} 35... Rc8 {[%clk 0:00:29.6]}
36. Qxa5 {[%clk 0:00:10.3]} 36... Rxa5 {[%clk 0:00:30.5]} 37. h4 {[%clk
0:00:08.6]} 37... Rxc4 {[%clk 0:00:29.1]} 38. Kd2 {[%clk 0:00:09.1]} 38... Ra2
{[%clk 0:00:28.4]} 39. Rc1 {[%clk 0:00:09.7]} 39... Nc5 {[%clk 0:00:28]} 40. Ng3
{[%clk 0:00:09.5]} 40... Nb3+ {[%clk 0:00:26.8]} 0-1

[Event "Early-Titled-Tuesday-Blitz-April-16-2024"]
[Site "Chess.com"]
[Date "2024.04.16"]
[Round "3"]
[White "nikitakhoroshev"]
[Black "knightinshiningarmour16"]
[Result "0-1"]
[WhiteElo "2550"]
[BlackElo "2321"]
[TimeControl "180+1"]
[EndTime "8:28:44 PDT"]
[Termination "knightinshiningarmour16 won by checkmate"]

1. e4 {[%clk 0:03:00.9]} 1... c6 {[%clk 0:02:58.6]} 2. Nc3 {[%clk 0:02:58.6]}
2... d5 {[%clk 0:02:59.5]} 3. Nf3 {[%clk 0:02:58.8]} 3... Bg4 {[%clk 0:02:57.8]}
4. h3 {[%clk 0:02:58.4]} 4... Bh5 {[%clk 0:02:55.3]} 5. g4 {[%clk 0:02:57.5]}
5... Bg6 {[%clk 0:02:55.4]} 6. exd5 {[%clk 0:02:56]} 6... cxd5 {[%clk
0:02:56.3]} 7. Ne5 {[%clk 0:02:52.2]} 7... Nc6 {[%clk 0:02:48.1]} 8. d4 {[%clk
0:02:48.1]} 8... a6 {[%clk 0:02:40.7]} 9. h4 {[%clk 0:02:43.6]} 9... Nxe5 {[%clk
0:02:19.4]} 10. dxe5 {[%clk 0:02:42.9]} 10... d4 {[%clk 0:02:19.3]} 11. Ne2
{[%clk 0:02:21.5]} 11... Qa5+ {[%clk 0:02:14.6]} 12. Bd2 {[%clk 0:02:08.7]}
12... Qxe5 {[%clk 0:02:11.1]} 13. Bg2 {[%clk 0:02:00.6]} 13... Be4 {[%clk
0:01:39.8]} 14. Bf4 {[%clk 0:01:50.3]} 14... Qd5 {[%clk 0:01:39.5]} 15. Bxe4
{[%clk 0:01:32.4]} 15... Qxe4 {[%clk 0:01:40.3]} 16. O-O {[%clk 0:01:30.1]}
16... e5 {[%clk 0:01:38.1]} 17. f3 {[%clk 0:01:24.5]} 17... Qd5 {[%clk
0:01:32.9]} 18. c4 {[%clk 0:01:19.2]} 18... Qc5 {[%clk 0:01:28]} 19. Qa4+ {[%clk
0:01:13.7]} 19... b5 {[%clk 0:01:22.5]} 20. cxb5 {[%clk 0:01:01.5]} 20... d3+
{[%clk 0:01:21.4]} 21. Kg2 {[%clk 0:01:01.9]} 21... Qxb5 {[%clk 0:01:05]} 22.
Qxb5+ {[%clk 0:00:58.3]} 22... axb5 {[%clk 0:01:04.5]} 23. Bxe5 {[%clk
0:00:55.1]} 23... dxe2 {[%clk 0:01:02.2]} 24. Rfe1 {[%clk 0:00:55.5]} 24... f6
{[%clk 0:00:55.6]} 25. Bc3 {[%clk 0:00:54.9]} 25... Kf7 {[%clk 0:00:53.7]} 26.
Rxe2 {[%clk 0:00:54.7]} 26... Bc5 {[%clk 0:00:51]} 27. Rd1 {[%clk 0:00:53.9]}
27... Ne7 {[%clk 0:00:46.2]} 28. b4 {[%clk 0:00:53.7]} 28... Bb6 {[%clk
0:00:38.7]} 29. Rd7 {[%clk 0:00:53.7]} 29... Rhe8 {[%clk 0:00:38.4]} 30. f4
{[%clk 0:00:48.7]} 30... Kf8 {[%clk 0:00:32.9]} 31. Rb7 {[%clk 0:00:45.9]} 31...
Nd5 {[%clk 0:00:23.3]} 32. Rc2 {[%clk 0:00:37.7]} 32... Ne3+ {[%clk 0:00:21.4]}
33. Kf3 {[%clk 0:00:36.7]} 33... Nxc2 {[%clk 0:00:21.8]} 34. Rxb6 {[%clk
0:00:37.6]} 34... Rxa2 {[%clk 0:00:19.7]} 35. Rc6 {[%clk 0:00:31.9]} 35... Ne1+
{[%clk 0:00:20]} 36. Kg3 {[%clk 0:00:31]} 36... Rg2+ {[%clk 0:00:18.7]} 37. Kh3
{[%clk 0:00:30.3]} 37... Rge2 {[%clk 0:00:18.5]} 38. h5 {[%clk 0:00:28.2]} 38...
R2e3+ {[%clk 0:00:18.7]} 39. Kh4 {[%clk 0:00:28.6]} 39... Ng2# {[%clk
0:00:17.6]} 0-1

[Event "Early-Titled-Tuesday-Blitz-April-16-2024"]
[Site "Chess.com"]
[Date "2024.04.16"]
[Round "3"]
[White "ChessSwole"]
[Black "pirulillo"]
[Result "0-1"]
[WhiteElo "2687"]
[BlackElo "2341"]
[TimeControl "180+1"]
[EndTime "8:28:45 PDT"]
[Termination "pirulillo won by checkmate"]

1. e4 {[%clk 0:03:00.9]} 1... c5 {[%clk 0:02:59.4]} 2. Nf3 {[%clk 0:03:00.7]}
2... e6 {[%clk 0:03:00]} 3. d4 {[%clk 0:02:59.7]} 3... cxd4 {[%clk 0:03:00.9]}
4. Nxd4 {[%clk 0:03:00.3]} 4... Nf6 {[%clk 0:03:01.2]} 5. Nc3 {[%clk 0:03:00.2]}
5... Nc6 {[%clk 0:03:01.8]} 6. Ndb5 {[%clk 0:03:00.1]} 6... d6 {[%clk
0:03:01.3]} 7. Bf4 {[%clk 0:02:58.4]} 7... e5 {[%clk 0:03:01.8]} 8. Bg5 {[%clk
0:02:58.6]} 8... a6 {[%clk 0:03:02.3]} 9. Na3 {[%clk 0:02:58.5]} 9... b5 {[%clk
0:03:03]} 10. Nd5 {[%clk 0:02:52.4]} 10... Be7 {[%clk 0:03:02.7]} 11. Bxf6
{[%clk 0:02:52.6]} 11... Bxf6 {[%clk 0:03:03.6]} 12. c3 {[%clk 0:02:53]} 12...
Bg5 {[%clk 0:03:02.6]} 13. Nc2 {[%clk 0:02:51.8]} 13... O-O {[%clk 0:03:03.1]}
14. a4 {[%clk 0:02:45]} 14... bxa4 {[%clk 0:03:04]} 15. Rxa4 {[%clk 0:02:44.7]}
15... a5 {[%clk 0:03:04.4]} 16. h4 {[%clk 0:02:40.8]} 16... Bh6 {[%clk
0:03:01.5]} 17. Bc4 {[%clk 0:02:37.8]} 17... Rb8 {[%clk 0:03:00.8]} 18. Ra2
{[%clk 0:02:33.7]} 18... g6 {[%clk 0:02:56.2]} 19. Qf3 {[%clk 0:02:27.8]} 19...
Kg7 {[%clk 0:02:53.8]} 20. Nce3 {[%clk 0:02:23.5]} 20... f5 {[%clk 0:01:11.1]}
21. h5 {[%clk 0:01:39]} 21... Bxe3 {[%clk 0:00:51.6]} 22. Qxe3 {[%clk
0:01:33.4]} 22... f4 {[%clk 0:00:50.7]} 23. Qd2 {[%clk 0:01:18.6]} 23... g5
{[%clk 0:00:50.5]} 24. h6+ {[%clk 0:01:15.3]} 24... Kh8 {[%clk 0:00:49.7]} 25.
f3 {[%clk 0:00:59.3]} 25... g4 {[%clk 0:00:46.4]} 26. Kd1 {[%clk 0:00:54]} 26...
Qg5 {[%clk 0:00:46.3]} 27. Kc1 {[%clk 0:00:52.5]} 27... Rd8 {[%clk 0:00:46]} 28.
g3 {[%clk 0:00:46.1]} 28... gxf3 {[%clk 0:00:43.3]} 29. gxf4 {[%clk 0:00:46.3]}
29... exf4 {[%clk 0:00:42.3]} 30. Nxf4 {[%clk 0:00:36.2]} 30... Ne5 {[%clk
0:00:42.4]} 31. Bd5 {[%clk 0:00:26.4]} 31... Rf8 {[%clk 0:00:42.1]} 32. Nh5
{[%clk 0:00:20.6]} 32... Qg2 {[%clk 0:00:35.1]} 33. Ra1 {[%clk 0:00:15.7]} 33...
f2 {[%clk 0:00:30.4]} 34. Kc2 {[%clk 0:00:14.4]} 34... Ba6 {[%clk 0:00:29.7]}
35. c4 {[%clk 0:00:10.8]} 35... Bxc4 {[%clk 0:00:18.5]} 36. Bxc4 {[%clk
0:00:10.6]} 36... Qxe4+ {[%clk 0:00:19.1]} 37. Bd3 {[%clk 0:00:10]} 37... Nxd3
{[%clk 0:00:18.7]} 38. Qxd3 {[%clk 0:00:10.1]} 38... Rfc8+ {[%clk 0:00:19.4]}
39. Kd2 {[%clk 0:00:10.3]} 39... Rxb2+ {[%clk 0:00:19.4]} 40. Kd1 {[%clk
0:00:10.2]} 40... Qxd3# {[%clk 0:00:19.5]} 0-1

[Event "Early-Titled-Tuesday-Blitz-April-16-2024"]
[Site "Chess.com"]
[Date "2024.04.16"]
[Round "3"]
[White "guillembaches"]
[Black "MomchilPetkov"]
[Result "0-1"]
[WhiteElo "2539"]
[BlackElo "2932"]
[TimeControl "180+1"]
[EndTime "8:28:46 PDT"]
[Termination "MomchilPetkov won on time"]

1. d4 {[%clk 0:03:00.9]} 1... Nf6 {[%clk 0:02:55.6]} 2. Nf3 {[%clk 0:03:01.2]}
2... d5 {[%clk 0:02:54.2]} 3. Bg5 {[%clk 0:03:01.3]} 3... Ne4 {[%clk 0:02:53.9]}
4. Bf4 {[%clk 0:03:01.5]} 4... c5 {[%clk 0:02:53.2]} 5. dxc5 {[%clk 0:03:01.6]}
5... Nc6 {[%clk 0:02:51.1]} 6. Nbd2 {[%clk 0:03:01.4]} 6... Nxc5 {[%clk
0:02:51.1]} 7. e3 {[%clk 0:03:01.5]} 7... f6 {[%clk 0:02:50.9]} 8. Be2 {[%clk
0:02:58.5]} 8... e5 {[%clk 0:02:51.2]} 9. Bg3 {[%clk 0:02:58.9]} 9... Be6 {[%clk
0:02:51.9]} 10. O-O {[%clk 0:02:58.8]} 10... Be7 {[%clk 0:02:51.9]} 11. Nb3
{[%clk 0:02:58.9]} 11... Ne4 {[%clk 0:02:52]} 12. Nfd2 {[%clk 0:02:57.2]} 12...
Nxg3 {[%clk 0:02:51.9]} 13. hxg3 {[%clk 0:02:57.2]} 13... O-O {[%clk 0:02:52.6]}
14. c4 {[%clk 0:02:56.7]} 14... d4 {[%clk 0:02:52]} 15. exd4 {[%clk 0:02:54.9]}
15... Nxd4 {[%clk 0:02:51.2]} 16. Nxd4 {[%clk 0:02:53.6]} 16... Qxd4 {[%clk
0:02:52.1]} 17. Qc2 {[%clk 0:02:49]} 17... Rac8 {[%clk 0:02:42.1]} 18. Rad1
{[%clk 0:02:48]} 18... b5 {[%clk 0:02:34.9]} 19. Ne4 {[%clk 0:02:17.5]} 19...
Qb6 {[%clk 0:02:34.7]} 20. b3 {[%clk 0:02:13.1]} 20... f5 {[%clk 0:02:30.1]} 21.
Nc3 {[%clk 0:01:59]} 21... bxc4 {[%clk 0:02:29.9]} 22. Nd5 {[%clk 0:01:59.1]}
22... Bxd5 {[%clk 0:02:27]} 23. Rxd5 {[%clk 0:01:59.1]} 23... cxb3 {[%clk
0:02:26]} 24. Qxb3 {[%clk 0:01:56.5]} 24... Qxb3 {[%clk 0:02:25.6]} 25. axb3
{[%clk 0:01:57.1]} 25... e4 {[%clk 0:02:18.8]} 26. Bc4 {[%clk 0:01:53.8]} 26...
Kh8 {[%clk 0:02:18.8]} 27. Ra1 {[%clk 0:01:45]} 27... Rc7 {[%clk 0:02:14.4]} 28.
Raa5 {[%clk 0:01:39.3]} 28... g6 {[%clk 0:02:14.3]} 29. Re5 {[%clk 0:01:30]}
29... Kg7 {[%clk 0:02:12.4]} 30. g4 {[%clk 0:01:26.5]} 30... fxg4 {[%clk
0:02:02.2]} 31. Rxe4 {[%clk 0:01:25.1]} 31... Bc5 {[%clk 0:02:02.2]} 32. Rxg4
{[%clk 0:01:21.8]} 32... Bxf2+ {[%clk 0:02:02.4]} 33. Kh2 {[%clk 0:01:19.9]}
33... Bb6 {[%clk 0:02:01]} 34. Rd5 {[%clk 0:01:17]} 34... Re7 {[%clk 0:01:58.9]}
35. Bd3 {[%clk 0:00:58.2]} 35... Bc7+ {[%clk 0:01:54.3]} 36. g3 {[%clk
0:00:51.6]} 36... Rf2+ {[%clk 0:01:47.8]} 37. Kh3 {[%clk 0:00:50.4]} 37... Bb6
{[%clk 0:01:30.1]} 38. Re4 {[%clk 0:00:47.2]} 38... Rxe4 {[%clk 0:01:27.6]} 39.
Bxe4 {[%clk 0:00:47.5]} 39... Rf7 {[%clk 0:01:18.9]} 40. Rd3 {[%clk 0:00:45.4]}
40... Rc7 {[%clk 0:01:10.4]} 41. Bd5 {[%clk 0:00:42.1]} 41... h5 {[%clk
0:01:08]} 42. g4 {[%clk 0:00:35.2]} 42... Kh6 {[%clk 0:01:00.1]} 43. gxh5 {[%clk
0:00:34.1]} 43... Kxh5 {[%clk 0:01:01]} 44. Bc4 {[%clk 0:00:32.5]} 44... Kg5
{[%clk 0:00:59.1]} 45. Kg2 {[%clk 0:00:28.9]} 45... Re7 {[%clk 0:00:56.2]} 46.
Rd6 {[%clk 0:00:25.6]} 46... Kh5 {[%clk 0:00:47.9]} 47. Be2+ {[%clk 0:00:23]}
47... Rxe2+ {[%clk 0:00:45.1]} 0-1